fUSD/lending_fUSD_20251029
["ID","MTS","AMOUNT","RATE_DAILY","PERIOD"]
[392616769,1761749108864,-29.714,0.00014687,2]
[392616771,1761749113373,150.0,0.00013488,2]
[392616772,1761749113419,150.0,0.00013987,2]
[392616773,1761749113479,150.0,0.00014487,2]
[392616774,1761749115095,150.0,0.00013488,2]
[392616775,1761749118283,150.0,0.00013488,2]
[392616776,1761749123044,6777.39102759,0.0001399,2]
[392616777,1761749123070,6214.49495681,0.0001399,2]
[392616778,1761749123093,6214.49495681,0.0001399,2]
[392616779,1761749123118,6214.49495681,0.0001399,2]
[392616780,1761749123143,6214.49495681,0.0001399,2]
[392616781,1761749123167,6214.49495681,0.0001399,2]
[392616782,1761749123191,6214.49495681,0.0001399,2]
[392616783,1761749123217,6214.49495681,0.0001399,2]
[392616784,1761749123241,6214.49495681,0.0001399,2]
[392616785,1761749123268,6214.49495681,0.0001399,2]
[392616786,1761749123291,6214.49495681,0.0001399,2]
[392616787,1761749123317,50000.0,0.0001399,2]
[392616788,1761749123342,5000.0,0.0001399,2]
[392616789,1761749123368,100000.0,0.0001399,2]
[392616790,1761749123946,150.0,0.00013488,2]
[392616791,1761749123999,150.93936813,0.00013488,2]
[392616792,1761749126441,-324.757,0.0001399,2]
[392616793,1761749127283,150.0,0.00013488,2]
[392616794,1761749128631,-617.13063187,0.0001399,2]
[392616795,1761749128674,150.0,0.00013488,2]
[392616796,1761749131499,150.0,0.00013488,2]
[392616797,1761749131581,150.0,0.00013488,2]
[392616798,1761749132736,-150.0,0.00013675,2]
[392616799,1761749132762,-45.29124383,0.00013862,2]
[392616800,1761749134908,-104.70875617,0.00013862,2]
[392616801,1761749134932,-104.10611962,0.0001399,2]
[392616802,1761749136490,-588.88136813,0.0001399,2]
[392616803,1761749138503,-179.948,0.0001399,2]
[392616805,1761749140661,-179.714,0.0001399,2]
[392616806,1761749143333,-179.949,0.0001399,2]
[392616807,1761749145863,-294.03232781,0.0001399,2]
[392616808,1761749163113,-215.51475617,0.0001399,2]
[392616809,1761749166815,-300.0,0.00013989,2]
[392616810,1761749166838,-550.08,0.0001399,2]
[392616811,1761749168359,-151.89692149,0.0001399,2]
[392616812,1761749169863,-169.013,0.0001399,2]
[392616813,1761749172923,-195.0,0.00013699,2]
[392616814,1761749175583,-149.9,0.00013699,2]
[392616815,1761749175609,-166.1,0.0001399,2]
[392616816,1761749177184,-405.07512919,0.0001399,2]
[392616818,1761749193317,-474.54591087,0.0001399,2]
[392616820,1761749196865,-195.0,0.0001399,2]
[392616821,1761749199635,-1123.82014332,0.0001399,2]
[392616822,1761749202651,-163.66,0.0001399,2]
[392616823,1761749204676,-166.66,0.0001399,2]
[392616824,1761749207336,-847.30996,0.0001399,2]
[392616825,1761749223617,-373.44413251,0.0001399,2]
[392616826,1761749226262,-1150.59627081,0.0001399,2]
[392616827,1761749229407,-168.0,0.0001399,2]
[392616828,1761749230190,300.0,0.000147,5]
[392616829,1761749231002,-225.19,0.0001399,2]
[392616830,1761749232294,600.0,0.000148,5]
[392616831,1761749232647,-1091.42916511,0.0001399,2]
[392616832,1761749234390,900.0,0.000149,5]
[392616833,1761749236551,1200.0,0.000179,6]
[392616834,1761749237898,-5148.90456408,0.0001399,2]
[392616835,1761749240652,-500.0,0.0001399,2]
[392616836,1761749244943,-500.0,0.0001392,2]
[392616837,1761749248396,-347.30996,0.0001392,2]
[392616838,1761749248419,-152.69004,0.0001399,2]
[392616839,1761749249824,-500.0,0.0001399,2]
[392616840,1761749253315,-157.85963175,0.0001395,2]
[392616841,1761749253337,-342.14036825,0.0001399,2]
[392616842,1761749255135,-399.08,0.0001399,2]
[392616843,1761749256625,-159.37123418,0.0001399,2]
[392616844,1761749258677,-500.0,0.0001399,2]
[392616845,1761749262313,-354.77009464,0.0001399,2]
[392616846,1761749264453,-4022.00730976,0.0001399,2]
[392616847,1761749265382,299.99,0.00017728,4]
[392616848,1761749266317,-599.16645209,0.0001399,2]
[392616854,1761749351127,150.0,0.0003,120]
[392616869,1761749419274,-1200.0,0.00013952,2]
[392616870,1761749419297,-300.0,0.00013952,2]
[392616871,1761749419320,-300.0,0.00013952,2]
[392616872,1761749419343,-195.0,0.00013952,2]
[392616873,1761749419365,-12849.57,0.00013953,2]
[392616874,1761749419389,-404.91698157,0.0001399,2]
[392616875,1761749419412,-187.56289428,0.0001399,2]
[392616876,1761749419435,-5234.1914449,0.00013993,2]
[392616877,1761749419460,-284.80512445,0.00013993,2]
[392616878,1761749429122,-184.0,0.00013993,2]
[392616879,1761749431255,-500.0,0.00013993,2]
[392616882,1761749431879,-123151.28487095,0.00013993,2]
[392616883,1761749431889,-150.0,0.0001405,2]
[392616884,1761749431899,-150.0,0.00014237,2]
[392616885,1761749431908,-150.0,0.00014424,2]
[392616886,1761749431918,-378.6572,0.00014523,2]
[392616887,1761749431928,-150.0,0.00014612,2]
[392616888,1761749431938,-120.286,0.00014687,2]
[392616889,1761749431948,-187.56289428,0.00014687,2]
[392616890,1761749431958,-187.56289428,0.00014722,2]
[392616891,1761749431969,-300.0,0.00014722,2]
[392616892,1761749431980,-435.4522194,0.00014723,2]
[392616893,1761749431989,-380.63604387,0.00014723,2]
[392616894,1761749431999,-500.0,0.00014723,2]
[392616895,1761749432010,-500.0,0.00014723,2]
[392616896,1761749432020,-500.0,0.00014723,2]
[392616897,1761749432031,-227.66499394,0.00014723,2]
[392616898,1761749432041,-432.2575351,0.00014723,2]
[392616899,1761749432051,-806.318,0.00014723,2]
[392616900,1761749432061,-150.0,0.00014723,2]
[392616901,1761749432071,-337.15770854,0.00014723,2]
[392616902,1761749432080,-362.20755441,0.00014723,2]
[392616903,1761749432091,-181.61552567,0.00014723,2]
[392616904,1761749432102,-43325.12,0.00014724,2]
[392616905,1761749432113,-10225.81,0.00014774,2]
[392616906,1761749432124,-150.0,0.00014799,2]
[392616907,1761749432134,-1000.0,0.000148,2]
[392616908,1761749432144,-2500.0,0.000148,2]
[392616909,1761749432154,-500.0,0.00014899,2]
[392616910,1761749432164,-242.94251394,0.00014899,2]
[392616912,1761749432175,-305.38396758,0.00014899,2]
[392616915,1761749432185,-520.96717573,0.00014899,2]
[392616916,1761749432196,-500.0,0.00014899,2]
[392616919,1761749432206,-2289.4,0.00014899,2]
[392616921,1761749432218,-164.63821375,0.00014899,2]
[392616923,1761749432228,-500.0,0.00014899,2]
[392616925,1761749432238,-500.0,0.00014899,2]
[392616927,1761749432248,-79.38231751,0.00014899,2]
[392616984,1761749432847,-233.82605893,0.00014899,2]
[392616985,1761749432858,-549.02756739,0.00014899,2]
[392616986,1761749432870,-7291.02,0.00014899,2]
[392616987,1761749432881,-4453.36803635,0.000149,2]
[392616988,1761749432893,-25650.48415515,0.000149,2]
[392616989,1761749432974,-839.90703024,0.000149,2]
[392616990,1761749432994,-429.39446054,0.000149,2]
[392616991,1761749433006,-1837.16811772,0.000149,2]
[392616992,1761749433018,-969.7081,0.000149,2]
[392616993,1761749433027,-18822.80401934,0.000149,2]
[392616994,1761749433071,-37795.15668443,0.000149,2]
[392616995,1761749437754,-270.76721663,0.0001395,2]
[392616996,1761749437765,-280.96475712,0.00014899,2]
[392616997,1761749437774,-500.0,0.00014899,2]
[392616998,1761749437784,-577.35960199,0.000149,2]
[392616999,1761749437795,-6254.65929159,0.000149,2]
[392617000,1761749437807,-9364.20735714,0.000149,2]
[392617001,1761749437818,-3390.45560147,0.000149,2]
[392617002,1761749437832,-440.9443231,0.000149,2]
[392617003,1761749437851,-20266.5663489,0.000149,2]
[392617004,1761749437866,-10204.80026232,0.000149,2]
[392617005,1761749438001,-13519.68794514,0.000149,2]
[392617006,1761749438013,-7997.8,0.000149,2]
[392617007,1761749438096,-540.01220046,0.000149,2]
[392617022,1761749440032,-63964.26416412,0.000149,2]
[392617023,1761749440042,-162.26600295,0.000149,2]
[392617024,1761749440052,-362.20755441,0.000149,2]
[392617025,1761749440062,-234.13729759,0.000149,2]
[392617026,1761749440072,-500.0,0.00014973,2]
[392617027,1761749440082,-500.0,0.00014973,2]
[392617028,1761749440091,-161.71292931,0.00014973,2]
[392617029,1761749440101,-500.0,0.00014973,2]
[392617030,1761749440110,-167.91781009,0.00014973,2]
[392617031,1761749440121,-500.0,0.00014973,2]
[392617032,1761749440130,-500.0,0.00014973,2]
[392617033,1761749440139,-501.65059402,0.00014973,2]
[392617034,1761749440148,-405.82862696,0.00014973,2]
[392617035,1761749440159,-150.0,0.00014986,2]
[392617036,1761749440169,-150.0,0.00014986,2]
[392617037,1761749440178,-150.0,0.00014986,2]
[392617038,1761749440187,-150.0,0.00014986,2]
[392617039,1761749440197,-254.73793039,0.00014986,2]
[392617040,1761749440207,-150.0,0.00014986,2]
[392617041,1761749440217,-150.0,0.00014986,2]
[392617042,1761749440229,-150.0,0.00014986,2]
[392617043,1761749440239,-205.67583266,0.0001499,2]
[392617044,1761749440248,-1434.85,0.00014991,2]
[392617045,1761749440259,-150.0,0.00014991,2]
[392617046,1761749440268,-151.0,0.00014991,2]
[392617047,1761749440278,-151.0,0.00014991,2]
[392617048,1761749440288,-151.0,0.00014991,2]
[392617049,1761749440297,-151.0,0.00014991,2]
[392617050,1761749440306,-151.0,0.00014991,2]
[392617051,1761749440315,-151.0,0.00014991,2]
[392617052,1761749440324,-151.0,0.00014991,2]
[392617053,1761749440333,-151.0,0.00014991,2]
[392617055,1761749440343,-151.0,0.00014991,2]
[392617056,1761749440352,-151.0,0.00014991,2]
[392617057,1761749440361,-151.0,0.00014991,2]
[392617058,1761749440370,-151.0,0.00014991,2]
[392617059,1761749440379,-151.0,0.00014991,2]
[392617060,1761749440388,-151.0,0.00014991,2]
[392617061,1761749440397,-151.0,0.00014991,2]
[392617062,1761749440406,-151.0,0.00014991,2]
[392617063,1761749440415,-151.0,0.00014991,2]
[392617064,1761749440424,-151.0,0.00014991,2]
[392617065,1761749440434,-151.0,0.00014991,2]
[392617066,1761749440443,-151.0,0.00014991,2]
[392617067,1761749440452,-151.0,0.00014991,2]
[392617068,1761749440462,-151.0,0.00014991,2]
[392617069,1761749440475,-151.0,0.00014991,2]
[392617070,1761749440488,-151.0,0.00014991,2]
[392617071,1761749440498,-151.0,0.00014991,2]
[392617072,1761749440507,-151.0,0.00014991,2]
[392617073,1761749440518,-151.0,0.00014991,2]
[392617074,1761749440530,-151.0,0.00014991,2]
[392617075,1761749440540,-151.0,0.00014991,2]
[392617076,1761749440549,-151.0,0.00014991,2]
[392617077,1761749440560,-151.0,0.00014991,2]
[392617078,1761749440571,-151.0,0.00014991,2]
[392617079,1761749440581,-151.0,0.00014991,2]
[392617080,1761749440590,-151.0,0.00014991,2]
[392617081,1761749440600,-151.0,0.00014997,2]
[392617082,1761749440610,-151.0,0.00014997,2]
[392617083,1761749440619,-500.0,0.00014998,2]
[392617084,1761749440629,-500.0,0.00014998,2]
[392617085,1761749440638,-2289.4,0.00014998,2]
[392617086,1761749440647,-2289.4,0.00014998,2]
[392617087,1761749440657,-508.29032832,0.00014998,2]
[392617088,1761749440666,-500.0,0.00014998,2]
[392617089,1761749440676,-7291.02,0.00014998,2]
[392617090,1761749440685,-500.0,0.00014998,2]
[392617091,1761749440695,-500.0,0.00014998,2]
[392617092,1761749440704,-7101.9677183,0.00014999,2]
[392617093,1761749440714,-60454.6616296,0.00014999,2]
[392617094,1761749440818,-155643.45479132,0.00014999,2]
[392617095,1761749440829,-8503.49541767,0.00014999,2]
[392617096,1761749441587,-1.6e-07,0.00014999,2]
[392617097,1761749441678,-1877.23860997,0.00014999,2]
[392617111,1761749443299,-195.11441466,0.00014998,2]
[392617112,1761749443309,-677.1467653,0.00014999,2]
[392617113,1761749443783,-3803.68094528,0.00014999,2]
[392617114,1761749443793,-34395.22491759,0.00014999,2]
[392617115,1761749443946,-5.32205635,0.00014999,2]
[392617116,1761749443968,-29233.38553776,0.00014999,2]
[392617117,1761749443980,-843.6088346,0.00014999,2]
[392617118,1761749443991,-500.0,0.00014999,2]
[392617119,1761749444001,-500.0,0.00014999,2]
[392617120,1761749444011,-2289.4,0.00014999,2]
[392617121,1761749444023,-2289.4,0.00014999,2]
[392617122,1761749444033,-2289.4,0.00014999,2]
[392617123,1761749444044,-2289.4,0.00014999,2]
[392617124,1761749444055,-2289.4,0.00014999,2]
[392617125,1761749444065,-2289.4,0.00014999,2]
[392617126,1761749444076,-500.0,0.00014999,2]
[392617127,1761749444086,-319.37933512,0.00014999,2]
[392617128,1761749444097,-512.15447119,0.00014999,2]
[392617129,1761749444107,-500.0,0.00014999,2]
[392617130,1761749444116,-594.79619573,0.00014999,2]
[392617131,1761749444126,-500.0,0.00014999,2]
[392617132,1761749444135,-500.0,0.00014999,2]
[392617133,1761749444146,-500.0,0.00014999,2]
[392617134,1761749444156,-500.0,0.00014999,2]
[392617135,1761749444167,-500.0,0.00014999,2]
[392617136,1761749444177,-504.93838857,0.00014999,2]
[392617137,1761749444187,-500.0,0.00014999,2]
[392617138,1761749444196,-500.0,0.00014999,2]
[392617139,1761749444207,-500.0,0.00014999,2]
[392617140,1761749444216,-500.0,0.00014999,2]
[392617141,1761749444227,-500.0,0.00014999,2]
[392617142,1761749444237,-500.0,0.00014999,2]
[392617143,1761749444247,-500.0,0.00014999,2]
[392617144,1761749444257,-7291.02,0.00014999,2]
[392617145,1761749444267,-7291.02,0.00014999,2]
[392617146,1761749444277,-7291.02,0.00014999,2]
[392617147,1761749444287,-7291.02,0.00014999,2]
[392617148,1761749444296,-7291.02,0.00014999,2]
[392617149,1761749444307,-7291.02,0.00014999,2]
[392617150,1761749444317,-7291.02,0.00014999,2]
[392617151,1761749444328,-500.0,0.00014999,2]
[392617152,1761749444338,-181.10377721,0.00014999,2]
[392617153,1761749444349,-671.66837628,0.00014999,2]
[392617154,1761749444358,-130928.01280469,0.00015,2]
[392617157,1761749445955,-162.59534555,0.00014999,2]
[392617158,1761749445964,-3162.21100763,0.00015,2]
[392617159,1761749446015,-148.78971755,0.00015,2]
[392617160,1761749446039,-2249.0,0.00015,2]
[392617171,1761749481764,-320.27067164,0.00013992,2]
[392617172,1761749481788,-179.7293282,0.00014194,2]
[392617174,1761749589547,300.0,0.0003,120]
[392617175,1761749624725,-373.4086,0.0001389,2]
[392617176,1761749624754,-128.15088811,0.00014194,2]
[392617177,1761749624778,-7414.8906575,0.00014303,2]
[392617178,1761749643000,-500.0,0.00014303,2]
[392617179,1761749703076,-770.69895157,0.00014303,2]
[392617180,1761749743517,674.15,0.00031506,120]
[392617183,1761749928025,-500.01448875,0.00014151,2]
[392617184,1761749929760,-6.17551125,0.00014151,2]
[392617185,1761749929783,-200.0,0.00014302,2]
[392617186,1761749929805,-323.41334196,0.00014303,2]
[392617187,1761749932516,-452.09704897,0.00014303,2]
[392617188,1761749932539,-47.90295103,0.00014332,2]
[392617189,1761749936341,-147.09704897,0.00014332,2]
[392617190,1761749936363,-352.90295103,0.00014361,2]
[392617191,1761749938454,-500.0,0.00014361,2]
[392617192,1761749941822,-500.0,0.00014361,2]
[392617193,1761749958889,-500.0,0.00014283,2]
[392617194,1761749960153,-500.0,0.00014283,2]
[392617195,1761749961816,-5515.0,0.00014283,2]
[392617196,1761749964041,9000.0,0.00017,60]
[392617197,1761749965052,-161.29,0.00014283,2]
[392617198,1761749965073,-510.85695988,0.00014361,2]
[392617199,1761749983614,2714.3,0.00017,10]
[392617200,1761750018069,-97.50008909,0.00014361,2]
[392617201,1761750018094,-62.35295087,0.00014361,2]
[392617202,1761750021496,-168.00000016,0.00014361,2]
[392617203,1761750048249,-384.15485721,0.00014115,2]
[392617205,1761750050891,-246.72079936,0.00014115,2]
[392617206,1761750050943,427.22240469,0.00031506,120]
[392617207,1761750053715,-153.17168369,0.00014115,2]
[392617208,1761750056143,-857.84514295,0.00014115,2]
[392617209,1761750058769,-314.51,0.00014115,2]
[392617211,1761750060706,-275.86307659,0.00014115,2]
[392617212,1761750062624,-183.06104208,0.00014115,2]
[392617213,1761750065430,-368.45975798,0.00014115,2]
[392617214,1761750068756,-328.85460642,0.00014115,2]
[392617215,1761750075366,-300.0,0.00014114,2]
[392617216,1761750075390,-57.04222255,0.00014115,2]
[392617219,1761750077923,-178.83115339,0.00014115,2]
[392617220,1761750079970,-295.26033778,0.00014115,2]
[392617221,1761750082121,-225.17599833,0.00014115,2]
[392617222,1761750086948,-420.31375021,0.00014115,2]
[392617223,1761750089699,-192.12201954,0.00014115,2]
[392617224,1761750091144,-473.14297785,0.00014115,2]
[392617226,1761750109147,-176.76762604,0.00014115,2]
[392617227,1761750110914,-230.73462432,0.00014115,2]
[392617228,1761750112678,-219.74158203,0.00014115,2]
[392617229,1761750116950,-250.0432859,0.00014115,2]
[392617230,1761750119505,-220.92639014,0.00014115,2]
[392617232,1761750120553,-153.97948743,0.00014115,2]
[392617233,1761750121970,-300.0,0.00014114,2]
[392617234,1761750121993,-33.20795196,0.00014115,2]
[392617256,1761750133463,176.66,0.00011221,2]
[392617257,1761750133679,176.66,0.00012623,2]
[392617258,1761750138051,-176.66,0.00014026,2]
[392617259,1761750138074,-51.7615338,0.00014115,2]
[392617260,1761750141712,-157.04511741,0.00014115,2]
[392617261,1761750145281,-297.3739501,0.00014115,2]
[392617263,1761750146526,-166.63373821,0.00014115,2]
[392617267,1761750149927,-166.66666668,0.00014115,2]
[392617268,1761750151639,-286.18613804,0.00014115,2]
[392617270,1761750168012,-228.23709076,0.00014001,2]
[392617272,1761750171837,-174.33478548,0.00014001,2]
[392617273,1761750176733,-97.42812376,0.00014001,2]
[392617274,1761750176757,-160.46599198,0.00014115,2]
[392617275,1761750178801,-164.56674478,0.00014115,2]
[392617276,1761750182077,-300.0,0.00014114,2]
[392617277,1761750182101,-38.76309633,0.00014115,2]
[392617279,1761750198053,-180.06399857,0.00014115,2]
[392617280,1761750200656,-346.40128441,0.00014115,2]
[392617281,1761750203210,-272.87895329,0.00014115,2]
[392617282,1761750205622,-193.79490688,0.00014115,2]
[392617283,1761750207155,-192.94339843,0.00014115,2]
[392617284,1761750208716,-191.25136897,0.00014115,2]
[392617285,1761750210319,-212.73947532,0.00014115,2]
[392617286,1761750212880,-162.85116113,0.00014115,2]
[392617287,1761750214416,-181.47555507,0.00014115,2]
[392617288,1761750217628,-191.08,0.00014115,2]
[392617289,1761750221758,-323.09818595,0.00014115,2]
[392617290,1761750223858,-270.82269366,0.00014115,2]
[392617291,1761750226006,-184.51152619,0.00014115,2]
[392617292,1761750230255,-281.24708127,0.00014044,2]
[392617293,1761750231733,-231.08383019,0.00014044,2]
[392617294,1761750235381,-263.17680972,0.00014044,2]
[392617295,1761750237152,-152.75817742,0.00014044,2]
[392617296,1761750242175,-443.20249186,0.00014044,2]
[392617298,1761750247195,-251.89,0.00014044,2]
[392617299,1761750249028,-399.90913154,0.00014044,2]
[392617300,1761750249053,-199.43592584,0.00014114,2]
[392617301,1761750253289,-165.60028277,0.00014015,2]
[392617302,1761750253318,-100.56407416,0.00014114,2]
[392617303,1761750253340,-41.44373298,0.00014115,2]
[392617304,1761750255288,-250.0,0.00014115,2]
[392617305,1761750256860,-198.46971435,0.00014115,2]
[392617306,1761750263265,-185.7570653,0.00014115,2]
[392617307,1761750264810,-302.54651434,0.00014115,2]
[392617308,1761750267232,-306.15661679,0.00014115,2]
[392617309,1761750270023,-156.62103444,0.00014115,2]
[392617310,1761750273165,-171.28,0.00014115,2]
[392617311,1761750275219,-309.02944966,0.00014001,2]
[392617312,1761750279343,-153.8132035,0.00014001,2]
[392617313,1761750281388,-193.13322744,0.00014001,2]
[392617314,1761750285993,-249.78420542,0.00014001,2]
[392617315,1761750304249,-305.0967804,0.00014001,2]
[392617316,1761750305957,-120.13313358,0.00014001,2]
[392617317,1761750305982,-133.70710488,0.00014114,2]
[392617318,1761750307491,-382.38501788,0.00014114,2]
[392617319,1761750311195,-280.7340171,0.00014114,2]
[392617320,1761750312610,-173.78755735,0.00014114,2]
[392617321,1761750312704,150.0,0.00013488,2]
[392617322,1761750312869,150.0,0.00013488,2]
[392617323,1761750313004,150.0,0.00013488,2]
[392617324,1761750313963,502.6715,0.00031507,120]
[392617325,1761750314690,-229.38630279,0.00014114,2]
[392617326,1761750314715,-184.97416856,0.00014114,2]
[392617327,1761750317769,-115.02583144,0.00014114,2]
[392617328,1761750317794,-127.62879764,0.00014114,2]
[392617329,1761750319890,150.0,0.00013488,2]
[392617330,1761750319966,150.0,0.00013488,2]
[392617331,1761750320012,150.0,0.00013488,2]
[392617332,1761750320311,150.0,0.00013488,2]
[392617333,1761750321687,-150.0,0.00013987,2]
[392617334,1761750321710,-145.37120236,0.00014114,2]
[392617335,1761750321735,-204.61316794,0.00014115,2]
[392617336,1761750321869,150.0,0.00013488,2]
[392617337,1761750323312,-226.77461443,0.00014115,2]
[392617338,1761750324931,-526.7130113,0.00014115,2]
[392617339,1761750326363,150.00000001,0.00013488,2]
[392617340,1761750326399,150.0,0.00013488,2]
[392617341,1761750328115,-453.55,0.00014115,2]
[392617342,1761750332991,-262.96477597,0.00014092,2]
[392617343,1761750333825,150.00000001,0.00013488,2]
[392617344,1761750334493,150.0,0.00013488,2]
[392617345,1761750335761,-161.722,0.00014092,2]
[392617346,1761750339046,-250.0,0.00014092,2]
[392617347,1761750341697,-242.57512913,0.00014092,2]
[392617348,1761750344974,-167.50735462,0.00014092,2]
[392617349,1761750347028,-161.31795755,0.00014092,2]
[392617350,1761750363147,-300.0,0.00014091,2]
[392617351,1761750363172,-261.43663175,0.00014092,2]
[392617352,1761750370170,-356.87196951,0.00014092,2]
[392617353,1761750372896,-374.82986058,0.00014092,2]
[392617354,1761750374112,150.62,0.00031,120]
[392617355,1761750376112,-591.0,0.00014092,2]
[392617356,1761750377805,-212.93952365,0.00014092,2]
[392617357,1761750381202,-156.51,0.00014092,2]
[392617358,1761750382622,-246.88880019,0.00014092,2]
[392617359,1761750384913,-165.17624386,0.00014092,2]
[392617360,1761750386462,-327.57951181,0.00014092,2]
[392617361,1761750390071,-168.27315177,0.00014092,2]
[392617362,1761750392292,-172.6681036,0.00014092,2]
[392617363,1761750409280,-215.78852907,0.00014091,2]
[392617364,1761750412461,-284.21147093,0.00014091,2]
[392617365,1761750412491,-51.73213185,0.00014091,2]
[392617366,1761750414002,-410.61914337,0.00014091,2]
[392617367,1761750415529,-37.64872478,0.00014091,2]
[392617368,1761750415556,-209.07560919,0.00014091,2]
[392617369,1761750417067,-181.827646,0.00014091,2]
[392617370,1761750419117,-109.09674481,0.00014091,2]
[392617371,1761750419145,-343.03202729,0.00014091,2]
[392617372,1761750422088,-181.32,0.00013941,2]
[392617373,1761750422117,-125.66688432,0.00014091,2]
[392617374,1761750426798,-31.30108839,0.00014091,2]
[392617375,1761750426827,-121.95891161,0.00014091,2]
[392617376,1761750426899,200.0,0.000147,5]
[392617377,1761750428460,500.0,0.000148,5]
[392617378,1761750430597,700.0,0.000149,5]
[392617380,1761750431653,-150.0,0.00013941,2]
[392617381,1761750431682,-16.66,0.00014091,2]
[392617382,1761750432696,1000.0,0.000169,6]
[392617383,1761750434578,-204.93288246,0.00014091,2]
[392617384,1761750438447,-233.63470094,0.00014021,2]
[392617386,1761750440022,-180.45480722,0.00014021,2]
[392617387,1761750442578,-263.07085281,0.00014021,2]
[392617390,1761750444607,-250.69901782,0.00014021,2]
[392617391,1761750446773,-240.54098218,0.00014021,2]
[392617393,1761750450671,-302.46887359,0.00014021,2]
[392617394,1761750468088,-365.70348041,0.00014021,2]
[392617395,1761750471233,-176.35,0.00014021,2]
[392617396,1761750473903,-190.9,0.00014021,2]
[392617397,1761750514123,999.0,0.00013905,3]
[392617398,1761750529301,-501.65475357,0.00014019,2]
[392617497,1761750603055,-271.59288246,0.00013922,2]
[392617515,1761750605431,-233.081201,0.00013922,2]
[392617541,1761750606979,-256.13693754,0.00013922,2]
[392617543,1761750607005,-3.09306246,0.00013992,2]
[392617558,1761750608419,-566.92732136,0.00013992,2]
[392617578,1761750610579,-168.76668385,0.00013992,2]
[392617608,1761750613850,-331.82457427,0.00013992,2]
[392617631,1761750615826,-196.45,0.00013992,2]
[392617656,1761750617424,-242.82451901,0.00013992,2]
[392617791,1761750632072,-304.99314798,0.00013992,2]
[392617793,1761750632084,-1293.73075996,0.00013992,2]
[392617794,1761750632094,-188.0,0.0001409,2]
[392617795,1761750632104,-1200.0,0.0001409,2]
[392617796,1761750632114,-156.44820593,0.00014091,2]
[392617797,1761750632124,-500.0,0.00014091,2]
[392617798,1761750632134,-500.0,0.00014091,2]
[392617799,1761750632143,-500.0,0.00014091,2]
[392617800,1761750632153,-500.0,0.00014091,2]
[392617801,1761750632162,-612.72072805,0.00014091,2]
[392617802,1761750632172,-500.0,0.00014091,2]
[392617804,1761750632182,-499.99999999,0.00014091,2]
[392617805,1761750632191,-18735.08512071,0.00014092,2]
[392617806,1761750632224,-1901.19729311,0.00014092,2]
[392617807,1761750632258,-678.10339744,0.00014092,2]
[392617892,1761750638282,-153.26,0.00013881,2]
[392617894,1761750638292,-3437.81601438,0.00014092,2]
[392617896,1761750638303,-3256.55986317,0.00014092,2]
[392617898,1761750638314,-8424.43036898,0.00014092,2]
[392617900,1761750638326,-6255.03737054,0.00014092,2]
[392617902,1761750638337,-3556.15559128,0.00014092,2]
[392617953,1761750641564,-1.6e-07,0.00014092,2]
[392617960,1761750642094,-1119.38625025,0.00014092,2]
[392617976,1761750643232,-24190.45771599,0.00014092,2]
[392617977,1761750643242,-348.65763965,0.00014104,2]
[392617978,1761750643252,-19205.05866918,0.00014115,2]
[392617979,1761750643262,-164.67,0.0001432,2]
[392617980,1761750643271,-175.572,0.00014361,2]
[392617981,1761750643280,-1436.485,0.00014361,2]
[392617982,1761750643290,-151.0,0.00014361,2]
[392617983,1761750643300,-181.1037772,0.00014361,2]
[392617984,1761750643310,-269.64704897,0.00014361,2]
[392617985,1761750643319,-500.0,0.00014361,2]
[392617986,1761750643328,-305.2737741,0.00014361,2]